bitfinex/quotes_ETHUSD_20240827
["timestamp","ask_amount","ask_price","bid_price","bid_amount"]
[1724794821509,0.03479966,2546.9,2546.7,0.55]
[1724794822117,0.03479966,2546.9,2546.8,0.058155]
[1724794822332,0.03479966,2546.9,2546.8,0.55]
[1724794822947,0.74733364,2548.2,2546.9,9.4428]
[1724794823157,1.15692872,2548.4,2547.0,4.94772894]
[1724794823354,0.74733364,2548.5,2547.0,8.87386894]
[1724794823865,0.69733364,2548.5,2547.0,8.87386894]
[1724794824064,0.69733364,2548.5,2547.2,9.3176]
[1724794824249,1.19687368,2549.0,2547.4,3.92545]
[1724794824447,1.19687368,2549.0,2547.3,7.47565]
[1724794824448,5.11997368,2549.0,2547.5,3.55]
[1724794824651,5.11997368,2549.0,2547.6,0.355]
[1724794824652,3.92328,2548.9,2547.6,0.355]
[1724794824853,3.92332,2548.9,2547.3,3.0]
[1724794825057,4.02140395,2548.9,2547.3,3.0]
[1724794825260,3.92356,2548.7,2547.3,3.0]
[1724794825458,3.92356,2548.7,2547.3,4.84679199]
[1724794825626,3.92475,2548.0,2547.2,9.3176]
[1724794825972,3.92553,2547.5,2547.2,6.96847138]
[1724794826826,4.02339536,2547.6,2545.9,3.92778]
[1724794827139,4.02339536,2547.6,2546.0,4.320498]
[1724794827140,3.92528,2547.6,2546.0,4.320498]
[1724794827335,3.92543,2547.5,2546.0,3.92772]
[1724794827571,3.92543,2547.5,2545.8,3.92796]
[1724794827572,7.85098,2547.5,2545.8,3.92796]
[1724794827865,3.92572,2547.3,2545.9,0.392796]
[1724794828075,3.92572,2547.3,2545.7,3.92814]
[1724794828281,3.92572,2547.3,2545.6,9.70842097]
[1724794828426,1.19687368,2547.7,2545.6,5.78022097]
[1724794828768,1.19687368,2547.7,2545.4,4.3202]
[1724794828769,3.9254,2547.6,2546.0,3.92771]
[1724794828977,4.02321316,2547.8,2546.1,9.7105]
[1724794829267,4.02321316,2547.8,2546.3,9.7105]
[1724794829438,3.92511,2547.7,2546.4,4.91379]
[1724794829639,3.92529,2547.6,2546.4,4.91379]
[1724794829840,1.19687368,2547.9,2546.5,0.05815132]
[1724794830055,1.19687368,2548.3,2546.6,0.55]
[1724794830253,3.9242,2548.3,2546.7,0.447684]
[1724794830463,3.92394,2548.5,2546.8,13.68344]
[1724794830670,4.02226544,2548.4,2546.8,9.757]
[1724794830886,3.92452,2548.1,2546.9,4.3204684]
[1724794831082,4.02278176,2548.0,2547.0,0.55]
[1724794831298,4.02278176,2548.0,2547.0,0.60812804]
[1724794831580,4.02278176,2548.0,2547.0,0.55]
[1724794832746,0.09812176,2548.0,2547.0,0.55]
[1724794832945,0.09812516,2548.1,2547.1,0.41893706]
[1724794833193,1.19687368,2548.5,2547.2,0.55]
[1724794833394,3.78862022,2549.4,2547.3,15.44909347]
[1724794833395,1.9696181,2549.0,2547.3,15.44909347]
[1724794833593,0.04244016,2549.1,2547.4,3.55]
[1724794833594,0.1405279,2549.1,2547.4,3.55]
[1724794833896,0.14052765,2549.1,2547.5,0.0580341]
[1724794834047,0.14052772,2549.1,2547.6,0.55]
[1724794834447,0.14052772,2549.1,2547.4,0.55]
[1724794834448,3.92326,2548.9,2547.4,0.55]
[1724794834762,0.92838873,2549.1,2547.4,0.55]
[1724794834763,5.77964558,2548.7,2547.4,0.55]
[1724794834963,5.77964558,2548.7,2547.3,9.6114]
[1724794834964,3.92449,2548.1,2547.3,9.6114]
[1724794835214,5.77964558,2547.7,2546.4,9.3979]
[1724794835348,0.09814961,2547.6,2546.4,9.3979]
[1724794835686,3.92541,2547.5,2546.4,9.3979]
[1724794835994,0.09815231,2547.6,2546.4,9.3979]
[1724794836343,3.92543,2547.5,2546.4,9.3979]
[1724794836547,6.56750659,2547.7,2546.4,10.33769]
[1724794836548,0.09815231,2547.4,2546.4,10.33769]
[1724794836773,0.09814796,2547.6,2546.4,10.33769]
[1724794838097,0.09814796,2547.6,2546.5,0.55]
[1724794838408,0.88600897,2547.6,2546.5,0.55]
[1724794838697,0.78786101,2547.6,2546.5,1.638769]
[1724794838910,0.09813737,2547.5,2546.5,0.55]
[1724794839199,3.92527,2547.6,2546.5,0.55]
[1724794839501,5.5208829,2547.9,2546.6,0.05817209]
[1724794839502,0.78786101,2547.9,2546.6,0.05817209]
[1724794839704,0.09813262,2547.9,2546.7,0.55]
[1724794839911,0.09813262,2547.9,2546.8,0.05814242]
[1724794840062,4.02294262,2547.9,2546.9,0.55]
[1724794840405,4.02294262,2547.9,2547.0,0.05814242]
[1724794840560,3.92502,2547.8,2547.1,0.54115456]
[1724794840769,4.71267101,2547.9,2547.1,0.54115456]
[1724794841006,4.02293799,2547.9,2547.1,0.54115456]
[1724794841339,0.885989,2548.0,2547.1,0.54115456]
[1724794841482,0.885989,2548.0,2547.2,0.05813129]
[1724794841892,0.885989,2548.0,2547.1,0.54115456]
[1724794841893,9.6493358,2547.9,2547.1,0.54115456]
[1724794842089,10.43719681,2547.9,2547.1,0.51260579]
[1724794842394,0.88598902,2547.8,2547.1,0.51260579]
[1724794842601,3.92513,2547.7,2547.1,0.51260579]
[1724794843116,3.92526,2547.6,2547.1,0.51260579]
[1724794843265,3.9256,2547.4,2546.4,9.3979]
[1724794844008,9.6499358,2547.5,2546.5,0.55]
[1724794845109,9.6499358,2547.5,2546.5,1.54479]
[1724794845473,10.43779681,2547.5,2546.5,1.54479]
[1724794845675,0.78786101,2547.6,2546.6,0.05815489]
[1724794845868,0.78786101,2547.5,2546.7,0.55]
[1724794846108,0.78786101,2547.7,2546.8,0.05814384]
[1724794846350,0.78786101,2547.7,2546.9,0.55]
[1724794846608,4.71284101,2547.8,2546.7,0.76529449]
[1724794847316,0.78786101,2547.7,2546.8,0.05814101]
[1724794847474,4.71284101,2547.8,2546.9,0.55]
[1724794847672,4.71284101,2547.8,2547.0,0.05813177]
[1724794847984,3.92498,2547.8,2547.1,0.55]
[1724794848314,3.92558,2547.4,2547.1,0.55]
[1724794848525,3.92558,2547.4,2546.5,3.0]
[1724794848686,0.78786101,2547.3,2546.6,0.55]
[1724794848914,0.78786101,2547.2,2546.6,0.55]
[1724794849122,5.10702981,2547.4,2546.6,0.55]
[1724794849123,4.71344101,2547.4,2546.6,0.55]
[1724794849300,0.78786101,2547.3,2546.6,0.55]
[1724794849503,4.71374101,2547.2,2546.4,9.3979]
[1724794850043,0.78786101,2546.8,2546.4,9.3979]
[1724794850252,0.78786101,2546.9,2546.4,9.3979]
[1724794850601,0.78786101,2546.8,2546.4,9.3979]
[1724794850800,0.78786101,2546.9,2546.4,9.3979]
[1724794851455,0.78786101,2546.8,2546.4,9.3979]
[1724794851616,0.78786101,2546.5,2546.4,8.52694602]
[1724794851820,0.78786101,2546.6,2546.4,8.52694602]
[1724794852008,0.78786101,2546.7,2546.4,8.52694602]
[1724794852344,1.18705647,2546.9,2546.4,9.37964062]
[1724794852545,1.40484755,2547.0,2546.4,9.37964062]
[1724794852849,0.79137978,2547.1,2546.4,9.37964062]
[1724794853346,0.79137978,2546.8,2546.4,8.52694602]
[1724794853706,6.51527274,2546.8,2546.4,8.52694602]
[1724794853905,0.79137978,2546.6,2546.4,8.52694602]
[1724794854144,0.79137978,2546.6,2544.9,3.9294]
[1724794854145,1.5960729,2546.7,2544.9,3.9293]
[1724794854357,0.79138467,2546.4,2545.0,0.39293]
[1724794854499,6.51527763,2546.4,2544.8,3.92956]
[1724794854901,5.72389296,2546.4,2544.8,3.92956]
[1724794855135,6.51527763,2546.4,2544.8,3.92956]
[1724794855434,5.72389296,2546.4,2545.0,3.92925]
[1724794855638,0.79138467,2546.3,2545.1,4.714896]
[1724794856003,6.51527763,2546.4,2545.1,4.714896]
[1724794856495,0.79138467,2546.2,2545.2,3.55]
[1724794856984,6.51527763,2546.4,2545.2,3.55]
[1724794857136,6.51527763,2546.4,2545.4,9.2152]
[1724794857475,6.51527763,2546.4,2545.5,3.55]
[1724794858982,0.79138467,2546.2,2545.5,3.55]
[1724794859577,0.79138467,2546.3,2545.5,3.55]
[1724794860235,0.79138467,2546.1,2545.5,4.90916896]
[1724794860780,7.31996586,2546.4,2545.5,4.90916896]
[1724794860781,0.79138467,2546.2,2545.5,4.90916896]
[1724794861072,0.79138467,2546.2,2545.5,3.55]
[1724794861258,0.79138467,2546.1,2545.5,3.55]
[1724794862091,0.79138467,2546.2,2545.5,3.55]
[1724794862239,0.79138467,2546.1,2545.5,3.55]
[1724794862443,0.79138467,2546.2,2545.5,3.55]
[1724794862639,0.79138467,2546.2,2545.6,0.05824316]
[1724794862955,0.79138467,2546.4,2545.7,0.55]
[1724794863141,0.79138467,2546.5,2545.8,0.05822258]
[1724794863483,1.18923574,2546.5,2546.0,9.4314]
[1724794863679,0.79138467,2546.6,2546.1,3.55]
[1724794863887,0.79138467,2546.4,2546.1,3.55]
[1724794864139,0.79138467,2546.6,2546.1,3.55]
[1724794864409,0.79138467,2546.5,2546.2,1.29814]
[1724794864561,0.79138467,2546.7,2546.3,0.55]
[1724794864999,1.18923574,2546.9,2546.3,0.55]
[1724794865000,0.79138467,2546.8,2546.3,0.55]
[1724794865234,0.79138467,2547.0,2546.4,0.05818032]
[1724794865510,0.79138467,2547.1,2546.5,0.55]
[1724794865665,0.79138467,2547.1,2546.6,0.05816434]
[1724794866006,0.79138467,2547.1,2546.7,0.55]
[1724794866163,1.98062041,2547.1,2546.7,0.55]
[1724794866364,0.79138467,2547.0,2546.7,0.55]
[1724794866565,1.18923574,2546.8,2546.7,0.55]
[1724794866804,0.79350199,2546.8,2546.7,0.55]
[1724794866964,0.79356952,2546.8,2546.7,0.55]
[1724794867162,1.18923574,2547.0,2546.7,0.55]
[1724794867163,0.79356952,2546.9,2546.7,0.55]
[1724794867570,0.79356952,2546.8,2546.7,0.55]
[1724794868010,1.9838227,2547.2,2546.8,9.3775]
[1724794868011,0.79356952,2547.1,2546.8,9.3775]
[1724794868167,1.18923574,2547.2,2546.9,1.60090335]
[1724794868168,0.79356952,2547.2,2546.9,1.60090335]
[1724794868368,0.79356952,2547.3,2546.9,1.54275]
[1724794868561,0.79356952,2547.3,2547.0,1.092025]
[1724794868765,0.79356952,2547.5,2547.1,0.60812423]
[1724794869233,0.79356952,2547.5,2547.1,0.55]
[1724794869892,0.79356952,2547.4,2547.1,0.55]
[1724794870080,0.74356952,2547.5,2547.1,0.55]
[1724794870284,0.74356952,2547.4,2547.1,0.55]
[1724794870614,1.18923574,2547.3,2547.0,0.55]
[1724794870771,1.18923574,2547.4,2547.0,0.55]
[1724794871203,1.18923574,2547.6,2547.0,0.55]
[1724794871971,1.18923574,2547.6,2547.0,1.84275]
[1724794871972,1.18923574,2547.3,2547.0,1.84275]
[1724794872138,1.18923574,2547.5,2547.0,1.84275]
[1724794872464,1.6290371,2547.6,2547.0,1.84275]
[1724794872465,1.22219994,2547.6,2547.0,1.84275]
[1724794872674,1.18923574,2547.4,2547.0,0.55]
[1724794872864,0.0329642,2547.4,2547.0,0.55]
[1724794873203,1.22219994,2547.4,2546.9,3.0]
[1724794873467,0.0329642,2547.4,2547.0,1.29587331]
[1724794873826,0.0329642,2547.4,2547.0,1.23775]
[1724794874231,0.0329642,2547.4,2547.1,0.55]
[1724794875685,0.0329642,2547.4,2547.2,0.05809808]
[1724794875975,0.0329642,2547.4,2547.3,0.55]
[1724794876177,0.0329642,2547.4,2547.3,10.06149949]
[1724794876331,0.0329642,2547.4,2547.3,11.00954995]
[1724794876532,0.0329642,2547.4,2547.3,14.00954995]
[1724794877675,1.18923574,2548.2,2547.3,13.45954995]
[1724794877977,1.18923574,2548.3,2547.4,3.0]
[1724794878132,1.18923574,2548.3,2547.5,1.345955]
[1724794878334,1.18923574,2548.4,2547.5,5.271315]
[1724794878555,1.18923574,2548.4,2547.6,3.0]
[1724794878974,0.06709367,2548.3,2547.7,3.92501]
[1724794879282,0.06709367,2548.3,2547.8,13.20392251]
[1724794879482,0.06709367,2548.3,2547.9,3.9247]
[1724794879785,0.06709367,2548.3,2548.0,7.47463]
[1724794880287,0.06709367,2548.3,2548.2,3.92433]
[1724794880569,0.79367292,2548.9,2548.2,6.92433]
[1724794880735,0.91740142,2549.0,2548.3,4.084878]
[1724794880932,0.91740142,2549.0,2548.3,8.009048]
[1724794881475,0.1237285,2549.0,2548.4,9.4534]
[1724794881674,0.1237285,2549.0,2548.5,3.0]
[1724794881848,0.1237285,2549.0,2548.6,1.24534]
[1724794882675,0.1237285,2549.0,2548.7,0.55]
[1724794883465,0.1237285,2549.0,2548.6,0.55]
[1724794884139,0.91740142,2549.0,2548.6,0.55]
[1724794884361,0.1237285,2549.0,2548.6,0.55]
[1724794885183,0.1237285,2549.0,2548.5,3.0]
[1724794885331,0.1237285,2549.0,2548.1,3.0]
[1724794885537,0.91740142,2549.0,2547.9,3.0]
[1724794885763,6.64129438,2549.0,2547.9,3.9734601]
[1724794885966,6.64129438,2549.0,2547.8,9.0421]
[1724794885967,3.92341,2548.8,2547.8,9.0421]
[1724794886166,4.71708292,2548.8,2547.8,9.0421]
[1724794886377,0.79367292,2548.8,2547.8,9.0421]
[1724794886680,0.79367292,2548.7,2547.8,9.0421]
[1724794887238,0.79367292,2548.8,2547.8,9.0421]
[1724794887439,0.79367292,2548.7,2547.8,9.0421]
[1724794887763,0.79367292,2548.8,2547.8,9.0421]
[1724794887981,5.72389296,2548.6,2547.8,9.0421]
[1724794888184,5.55211462,2548.4,2547.8,9.0421]
[1724794888340,5.55211462,2548.4,2546.7,13.36029]
[1724794888857,5.55211462,2548.1,2546.9,3.92625]
[1724794889539,5.55211462,2548.1,2546.7,16.89518]
[1724794889738,5.55211462,2548.1,2546.8,3.0]
[1724794889978,5.55211462,2548.1,2546.9,1.596863]
[1724794891340,5.55211462,2548.1,2547.0,0.55]
[1724794893973,6.34578754,2548.1,2547.0,0.55]
[1724794894582,5.55211462,2548.1,2547.0,0.55]
[1724794896544,0.79367292,2548.3,2547.0,0.55]
[1724794896772,1.97748395,2548.6,2547.6,9.3796]
[1724794896773,0.79367292,2548.6,2547.6,9.3796]
[1724794897000,0.79367292,2548.9,2547.7,3.55]
[1724794897514,6.46951604,2549.0,2547.7,3.55]
[1724794897669,6.46951604,2549.0,2547.8,1.685484]
[1724794898016,6.46951604,2549.0,2547.9,0.55]
[1724794898314,5.67584312,2549.0,2547.9,0.55]
[1724794899773,5.67584312,2549.0,2548.0,0.05800803]
[1724794900094,5.67584312,2549.0,2548.1,0.55]
[1724794900292,5.67584312,2549.0,2548.2,0.05800805]
[1724794900471,5.67584312,2549.0,2548.3,0.55]
[1724794900672,5.67584312,2549.0,2548.4,0.05800807]
[1724794900872,0.1237285,2549.0,2548.5,0.55]
[1724794901218,0.1237285,2549.0,2548.6,0.05797694]
[1724794901516,0.1237285,2549.0,2548.7,0.55]
[1724794902038,0.1237285,2549.0,2548.8,0.05796944]
[1724794902193,0.1237285,2549.0,2548.9,0.55]
[1724794904048,0.1237285,2549.0,2548.9,0.60796939]
[1724794904251,0.1237285,2549.0,2548.9,0.55]
[1724794904467,0.1237285,2549.0,2548.9,3.997339]
[1724794904755,0.1237285,2549.0,2548.9,4.05525723]
[1724794905105,0.1237285,2549.0,2548.9,3.997339]
[1724794905303,0.1237285,2549.0,2548.9,4.05525037]
[1724794905753,0.1237285,2549.0,2548.9,3.997339]
[1724794906159,0.1237285,2549.0,2548.9,7.97850515]
[1724794907217,0.79367292,2550.3,2548.9,17.071499]
[1724794907467,5.55211462,2550.5,2549.0,1.7463099]
[1724794907468,0.79367292,2550.5,2549.0,1.7463099]
[1724794907658,0.79367292,2550.5,2549.1,0.3916]
[1724794907868,0.79367292,2550.5,2549.1,4.31446]
[1724794908155,0.79367292,2550.5,2549.2,3.3916]
[1724794908362,0.79367292,2550.5,2549.3,0.731446]
[1724794908523,0.79367292,2550.6,2549.3,0.731446]
[1724794909439,0.79367292,2550.6,2549.4,0.55]
[1724794909927,6.34578754,2550.7,2549.4,0.55]
[1724794910753,0.79367292,2550.7,2549.5,9.9375]
[1724794910952,0.79367292,2551.0,2549.7,0.3916]
[1724794911130,0.79367292,2551.1,2549.8,0.60782348]
[1724794911327,0.79367292,2551.2,2549.9,9.9375]
[1724794911644,0.91740142,2551.5,2550.1,0.3916]
[1724794911838,0.91740142,2551.5,2550.2,0.99938917]
[1724794912038,0.91740142,2551.5,2550.3,0.60778922]
[1724794912039,0.1237285,2551.5,2550.3,0.60778922]
[1724794912338,0.1237285,2551.5,2550.4,9.9375]
[1724794912546,0.1237285,2551.5,2550.5,4.66229565]
[1724794912991,0.1237285,2551.5,2550.6,0.3916]
[1724794913156,0.1237285,2551.5,2550.8,0.3916]
[1724794913363,0.1237285,2551.5,2550.8,0.44931275]
[1724794913656,0.1237285,2551.5,2550.9,0.60771103]
[1724794914085,0.1237285,2551.5,2551.1,0.3916]
[1724794914390,0.1237285,2551.5,2551.2,1.55725575]
[1724794914610,3.91725,2552.9,2551.3,0.0576722]
[1724794914787,3.91658,2553.3,2551.6,3.9191]
[1724794914946,3.91658,2553.3,2551.7,0.60762335]
[1724794915141,0.09791635,2553.4,2551.9,0.3916]
[1724794915387,3.91622,2553.5,2552.0,0.60762335]
[1724794915703,5.55211462,2553.6,2552.1,9.1042]
[1724794915882,5.55211462,2553.6,2552.2,4.52118234]
[1724794916091,9.46774462,2553.9,2552.3,0.3916]
[1724794916395,9.46782462,2553.9,2552.4,0.55]
[1724794916549,3.91571,2553.9,2552.4,0.55]
[1724794916745,4.01342333,2554.0,2552.4,0.55]
[1724794917261,3.91563,2553.9,2552.4,0.55]
[1724794917459,0.1237285,2554.1,2552.5,13.02183]
[1724794917678,0.1237285,2554.1,2552.6,4.907183]
[1724794918202,4.0390885,2554.1,2552.6,4.907183]
[1724794918499,4.0390885,2554.1,2552.7,9.4746]
[1724794918500,0.1237285,2554.1,2552.7,9.4746]
[1724794918648,0.1237285,2554.1,2552.9,0.3916]
[1724794919042,0.1237285,2554.1,2553.0,0.55]
[1724794920066,0.20322203,2554.1,2553.0,0.55]
[1724794920247,3.91559,2553.9,2552.9,0.55]
[1724794920462,3.91559,2553.9,2552.7,9.4746]
[1724794920463,4.01356253,2553.9,2552.8,0.55]
[1724794920666,4.01356253,2553.9,2552.7,9.4746]
[1724794920667,3.91577,2553.8,2552.7,9.4746]
[1724794921001,3.9162,2553.5,2552.7,9.4746]
[1724794921315,3.9162,2553.5,2552.3,0.3928]
[1724794922206,3.9162,2553.5,2552.2,0.3928]
[1724794922528,3.99582548,2553.4,2552.2,0.3928]
[1724794922864,3.99582548,2553.4,2552.2,3.3928]
[1724794923092,3.91659,2553.3,2552.1,9.9946]
[1724794923297,6.07827102,2553.2,2552.1,9.9946]
[1724794923502,10.09287914,2553.2,2552.1,9.9946]
[1724794923709,3.91716,2552.9,2551.5,9.3852]
[1724794923889,4.01532316,2552.8,2551.5,9.3852]
[1724794924183,3.91757,2552.6,2551.5,9.3852]
[1724794924403,3.91757,2552.6,2550.8,7.84047]
[1724794924404,4.01551661,2552.6,2550.9,9.3852]
[1724794924709,6.07827102,2552.3,2551.0,1.9383701]
[1724794924870,6.07827102,2552.3,2550.9,9.3852]
[1724794925201,6.17622142,2552.4,2551.0,0.3928]
[1724794925408,0.0979504,2552.4,2551.0,0.3928]
[1724794925714,3.91839,2552.1,2550.9,9.3852]
[1724794925916,3.9178,2552.5,2550.9,9.3852]
[1724794925917,6.07827102,2551.9,2550.9,9.3852]
[1724794926214,0.09797867,2551.8,2550.9,9.3852]
[1724794926664,6.1762497,2551.9,2550.9,9.3852]
[1724794927406,0.09797215,2551.8,2550.9,9.3852]
[1724794927612,0.09797215,2551.8,2550.7,0.3928]
[1724794928615,0.09797215,2551.8,2550.3,0.4505907]
[1724794928819,3.91805,2552.3,2550.6,0.3928]
[1724794929116,3.91815,2552.3,2550.7,0.05773806]
[1724794929283,6.07827102,2552.2,2550.8,0.05774441]
[1724794929490,6.07827102,2552.2,2551.0,0.3928]
[1724794929689,6.07827102,2552.2,2551.1,1.00054436]
[1724794929903,6.07827102,2552.2,2551.1,0.45054436]
[1724794930214,6.07827102,2552.2,2551.2,0.55]
[1724794930379,6.07827102,2552.2,2551.3,0.05771459]
[1724794930578,6.07827102,2552.2,2551.4,0.55]
[1724794931182,6.07827102,2552.2,2551.1,0.3928]
[1724794931183,6.17622541,2552.2,2551.2,0.55]
[1724794931413,10.09452351,2552.2,2551.2,0.55]
[1724794932482,6.07827102,2552.5,2551.3,0.05774604]
[1724794932822,6.07827102,2552.5,2551.4,0.55]
[1724794932993,6.07827102,2552.5,2551.5,0.05771372]
[1724794933195,6.07827102,2552.5,2551.6,0.55]
[1724794933500,6.07827102,2552.5,2551.7,0.05771372]
[1724794934119,6.17622505,2552.5,2551.7,0.05771372]
[1724794934275,6.07827102,2552.5,2551.7,0.05771372]
[1724794934477,6.08808647,2552.4,2551.7,0.05771372]
[1724794934902,6.08808647,2552.4,2551.6,0.55]
[1724794935122,6.08808647,2552.4,2551.8,0.55]
[1724794935619,6.08808647,2552.7,2551.8,0.55]
[1724794936191,6.18602837,2552.7,2551.8,0.55]
[1724794937027,6.08808647,2552.7,2551.8,0.55]
[1724794937385,6.08808647,2553.0,2551.7,12.5779]
[1724794937706,6.08808647,2553.0,2551.8,1.649689]
[1724794937908,6.08808647,2553.0,2551.9,0.55]
[1724794939786,10.00505647,2553.0,2551.9,0.55]
[1724794940125,6.08808647,2553.0,2551.9,0.55]
[1724794940283,6.08808647,2553.0,2551.9,1.9727589]
[1724794941287,6.08808647,2553.0,2552.0,0.05766475]
[1724794941492,6.08808647,2553.0,2552.1,0.55]
[1724794942012,6.08808647,2553.0,2552.0,0.55]
[1724794942612,6.08511095,2553.0,2552.0,0.55]
[1724794942821,6.08511095,2553.0,2552.0,0.74727589]
[1724794947014,4.01473362,2553.1,2552.0,0.74727589]
[1724794947248,4.01473362,2553.1,2551.9,1.4227589]
[1724794947249,3.9173,2552.8,2551.9,1.4227589]
[1724794947442,10.00241095,2552.8,2551.7,12.0279]
[1724794947715,6.08511095,2552.8,2551.7,12.0279]
[1724794948884,6.08511095,2552.8,2551.8,0.55]
[1724794949019,6.08511095,2552.8,2551.9,0.71597897]
[1724794949220,6.08511095,2552.8,2552.0,0.55]
[1724794951365,10.00237095,2552.8,2552.0,0.55]
[1724794951815,6.08511095,2552.5,2551.8,0.55]
[1724794954289,6.87878387,2552.5,2551.8,0.55]
[1724794955156,6.87878387,2552.5,2551.8,1.80779]
[1724794955533,0.79367292,2552.4,2551.8,1.80779]
[1724794956423,0.79367292,2552.3,2551.8,1.80779]
[1724794957460,0.79367292,2552.2,2551.8,1.80779]
[1724794958473,0.79367292,2552.2,2551.8,0.55]
[1724794959036,0.79367292,2552.1,2551.8,0.55]
[1724794959565,0.79367292,2551.9,2551.8,0.55]
[1724794959987,0.79367292,2551.9,2551.7,9.0279]
[1724794960879,0.79367292,2552.0,2551.7,10.23069]
[1724794961040,0.79367292,2551.9,2551.7,9.0279]
[1724794961437,0.79367292,2551.9,2551.8,0.55]
[1724794962371,1.18923574,2552.0,2551.8,0.55]
[1724794963339,1.18923574,2551.9,2551.8,0.55]
[1724794964242,1.5960729,2551.9,2551.8,0.55]
[1724794964966,1.5960729,2551.9,2551.8,1.50779]
[1724794965176,1.19611197,2551.9,2551.8,0.55]
[1724794965347,1.5960729,2551.9,2551.8,0.55]
[1724794966060,1.59463153,2551.9,2551.8,0.55]
[1724794966268,1.59463153,2551.9,2551.8,0.60771627]
[1724794966269,1.19700373,2551.9,2551.8,0.60771627]
[1724794966576,0.79806747,2551.9,2551.8,1.5712779]
[1724794967475,0.79806747,2551.9,2551.8,1.51356163]
[1724794967750,1.19700373,2552.0,2551.8,1.51356163]
[1724794968351,0.79842124,2551.9,2551.8,1.51356163]
[1724794968552,1.19700373,2552.0,2551.8,1.51356163]
[1724794968748,1.19700373,2552.0,2551.8,0.54339479]
[1724794968949,0.06258947,2551.9,2551.8,0.54339479]
[1724794969449,0.06258947,2551.9,2551.8,0.60109941]
[1724794969752,0.06258947,2551.9,2551.8,3.54339479]
[1724794969995,0.06258947,2551.9,2551.8,3.6010887]
[1724794970299,0.06258947,2551.9,2551.8,5.25588957]
[1724794971485,0.06258947,2551.9,2551.8,5.19819566]
[1724794972389,0.06258947,2551.9,2551.8,5.25588118]
[1724794972887,0.06258947,2551.9,2551.8,5.19819566]
[1724794975670,0.06258947,2551.9,2551.8,5.25588681]
[1724794976955,1.19700373,2552.2,2551.9,3.91856]
[1724794977254,0.79965213,2552.5,2552.1,8.48352556]
[1724794977569,0.79965213,2552.7,2552.3,9.8329]
[1724794977784,0.79965213,2552.8,2552.3,9.8329]
[1724794977990,0.79965213,2552.8,2552.4,5.280108]
[1724794980466,0.79965213,2552.9,2552.4,5.280108]
[1724794981184,0.79965213,2552.8,2552.4,5.280108]
[1724794983413,1.99665586,2552.8,2552.4,3.55]
[1724794983556,0.79965213,2552.6,2552.4,0.55]
[1724794983756,0.79965213,2552.6,2552.2,0.55]
[1724794983955,0.79965213,2552.6,2552.3,0.355]
[1724794984153,0.79965213,2552.6,2552.4,0.55]
[1724794984406,1.15889144,2552.9,2552.4,9.072]
[1724794984601,1.59808125,2553.0,2552.4,9.072]
[1724794984602,0.79894621,2553.0,2552.5,4.00031417]
[1724794984800,0.79894621,2553.1,2552.5,4.00031417]
[1724794985415,2.58844621,2553.2,2552.5,4.00031417]
[1724794985614,2.0,2553.2,2552.6,1.85723142]
[1724794985821,2.0,2553.2,2552.7,0.05760052]
[1724794986014,1.6782,2553.2,2552.8,0.55]
[1724794986217,1.6782,2553.2,2552.9,0.05760057]
[1724794986543,1.6782,2553.2,2553.0,0.55]
[1724794987821,1.6782,2553.2,2553.1,0.05760071]
[1724794988144,1.6782,2553.2,2553.1,0.55]
[1724794992360,1.6782,2553.2,2553.1,10.5045]
[1724794992507,1.6782,2553.2,2553.1,14.55495]
[1724794994909,1.6782,2553.2,2553.1,4.60045]
[1724794995113,1.6782,2553.2,2553.1,0.55]
[1724794995314,1.6782,2553.2,2552.9,0.55]
[1724794995862,1.6782,2553.2,2552.7,9.2231]
[1724794997955,1.6782,2553.2,2552.6,1.30723142]
[1724794998254,1.6782,2553.2,2552.2,0.3928]
[1724794998428,1.6782,2553.2,2552.2,3.3928]
[1724794998824,1.6782,2553.2,2552.3,0.9428]
[1724795003565,1.6782,2553.2,2552.3,5.37456549]
[1724795003718,1.6782,2553.2,2552.5,4.95373902]
[1724795003923,1.6782,2553.2,2552.6,5.1299529]
[1724795004120,1.6782,2553.2,2552.7,9.6673]
[1724795004428,1.6782,2553.2,2552.8,3.55]
[1724795007315,0.1237285,2554.1,2553.3,9.2152]
[1724795007467,0.1237285,2554.1,2553.4,0.6075099]
[1724795007774,0.1237285,2554.1,2553.4,3.6075099]
[1724795010704,0.1237285,2554.1,2553.5,3.91615]
[1724795010884,0.1237285,2554.1,2553.6,4.296615]
[1724795011587,0.1237285,2554.1,2553.6,1.296615]
[1724795017294,0.1237285,2554.1,2553.6,0.55]
[1724795017520,0.1237285,2554.1,2553.5,0.55]
[1724795017521,4.68466752,2554.1,2553.5,0.55]
[1724795017797,4.56093902,2553.8,2552.9,1.32173]
[1724795018132,4.56093902,2553.5,2553.0,1.125213]
[1724795018344,4.56093902,2553.1,2552.6,1.1871529]
[1724795018548,11.11728932,2553.4,2551.9,9.9304]
[1724795018746,4.56093902,2552.5,2552.0,0.99304]
[1724795019104,4.56093902,2552.5,2551.4,13.22501]
[1724795019459,1.19558932,2552.7,2551.4,13.22501]
[1724795019752,4.56093902,2552.3,2551.4,13.22501]
[1724795020310,1.19558932,2552.7,2551.4,13.22501]
[1724795020507,4.56093902,2552.4,2551.5,1.361781]
[1724795020753,10.45238932,2552.7,2551.5,1.361781]
[1724795020951,1.19558932,2552.5,2551.5,1.361781]
[1724795021155,4.56093902,2552.2,2551.5,1.361781]
[1724795021307,4.56093902,2552.2,2551.6,1.0667481]
[1724795021507,1.19558932,2552.6,2551.6,1.0667481]
[1724795021707,4.56093902,2552.1,2551.6,1.0667481]
[1724795021960,1.19558932,2552.6,2551.6,1.0667481]
[1724795022215,4.56093902,2552.1,2551.6,1.0667481]
[1724795022711,4.56093902,2552.1,2551.7,0.40667481]
[1724795022909,4.56093902,2552.1,2551.8,0.55]
[1724795023813,1.19558932,2552.6,2551.8,0.55]
[1724795024114,4.56093902,2552.0,2551.8,0.55]
[1724795024273,1.19558932,2552.5,2551.8,0.55]
[1724795024471,4.56093902,2551.9,2551.8,0.55]
[1724795024782,4.56093902,2551.9,2551.7,0.55]
[1724795025377,1.19558932,2552.4,2551.7,0.55]